fUSD/lending_fUSD_20241122
["ID","MTS","AMOUNT","RATE_DAILY","PERIOD"]
[342974961,1732241448090,-500.87458057,0.00059498,120]
[342974962,1732241448100,-502.25995393,0.00059498,120]
[342974963,1732241448110,-500.0,0.00059498,120]
[342974964,1732241448120,-500.0,0.00059498,120]
[342974965,1732241448130,-500.0,0.00059498,120]
[342974966,1732241448140,-500.0,0.00059498,120]
[342974967,1732241448150,-500.0,0.00059498,120]
[342974968,1732241448160,-501.95159708,0.00059498,120]
[342974969,1732241448169,-502.55790256,0.00059498,120]
[342974970,1732241448180,-502.16823041,0.00059498,120]
[342974971,1732241448189,-500.0,0.00059498,120]
[342974972,1732241448200,-505.11449621,0.00059498,120]
[342974973,1732241448210,-189.82791388,0.00059498,120]
[342974974,1732241448219,-503.38881007,0.00059498,120]
[342974975,1732241448229,-542.99781141,0.00059498,120]
[342974976,1732241448239,-514.1748558,0.00059498,120]
[342974977,1732241448249,-500.84193267,0.00059498,120]
[342974978,1732241448259,-500.0,0.00059498,120]
[342974979,1732241448269,-500.0,0.00059498,120]
[342974980,1732241448279,-502.05949618,0.00059498,120]
[342974981,1732241448288,-513.86794295,0.00059498,120]
[342974982,1732241448298,-500.0,0.00059498,120]
[342974983,1732241448308,-500.0,0.00059498,120]
[342974984,1732241448318,-500.0,0.00059498,120]
[342974985,1732241448328,-501.05292729,0.00059498,120]
[342974986,1732241448338,-500.0,0.00059498,120]
[342974987,1732241448347,-500.0,0.00059498,120]
[342974988,1732241448357,-501.07358628,0.00059498,120]
[342974989,1732241448367,-500.0,0.00059498,120]
[342974990,1732241448376,-500.0,0.00059498,120]
[342974991,1732241448386,-200.0,0.00059498,7]
[342974992,1732241448396,-500.0,0.00059498,120]
[342974993,1732241448406,-500.0,0.00059498,120]
[342974994,1732241448417,-500.0,0.00059498,120]
[342974995,1732241448426,-500.0,0.00059498,120]
[342974996,1732241448436,-501.11416506,0.00059498,120]
[342974997,1732241448446,-500.0,0.00059498,120]
[342974998,1732241448456,-500.0,0.00059498,120]
[342974999,1732241448465,-500.0,0.00059498,120]
[342975000,1732241448475,-501.83932195,0.00059498,120]
[342975001,1732241448485,-500.0,0.00059498,120]
[342975002,1732241448494,-500.0,0.00059498,120]
[342975003,1732241448504,-501.18534414,0.00059498,120]
[342975004,1732241448513,-500.0,0.00059498,120]
[342975005,1732241448524,-500.0,0.00059498,120]
[342975006,1732241448533,-502.52728063,0.00059498,120]
[342975007,1732241448543,-501.75959545,0.00059498,120]
[342975008,1732241448552,-500.0,0.00059498,120]
[342975009,1732241448561,-500.0,0.00059498,120]
[342975010,1732241448571,-500.0,0.00059498,120]
[342975011,1732241448580,-500.0,0.00059498,120]
[342975012,1732241448589,-500.61728173,0.00059498,120]
[342975013,1732241448599,-503.10261426,0.00059498,120]
[342975014,1732241448608,-501.81917128,0.00059498,120]
[342975015,1732241448618,-500.0,0.00059498,120]
[342975016,1732241448628,-500.0,0.00059498,120]
[342975017,1732241448637,-500.0,0.00059498,120]
[342975018,1732241448647,-631.59646622,0.00059498,120]
[342975019,1732241448656,-504.67861463,0.00059498,120]
[342975020,1732241448666,-500.0,0.00059498,120]
[342975021,1732241448675,-517.36681888,0.00059498,120]
[342975022,1732241448684,-500.0,0.00059498,120]
[342975023,1732241448694,-500.0,0.00059498,120]
[342975024,1732241448704,-500.0,0.00059498,120]
[342975025,1732241448713,-500.0,0.00059498,120]
[342975026,1732241448723,-500.0,0.00059498,120]
[342975027,1732241448733,-501.82653575,0.00059498,120]
[342975028,1732241448743,-500.0,0.00059498,120]
[342975029,1732241448753,-502.13327748,0.00059498,120]
[342975030,1732241448763,-168.0,0.00059498,120]
[342975031,1732241448775,-500.0,0.00059498,120]
[342975032,1732241448786,-500.89870052,0.00059498,120]
[342975033,1732241448796,-504.24298639,0.00059498,120]
[342975034,1732241448806,-501.43839066,0.00059498,120]
[342975035,1732241448816,-500.0,0.00059498,120]
[342975036,1732241448826,-500.0,0.00059498,120]
[342975037,1732241448836,-500.0,0.00059498,120]
[342975038,1732241448846,-500.0,0.00059498,120]
[342975039,1732241448856,-500.0,0.00059498,120]
[342975040,1732241448866,-500.0,0.00059498,120]
[342975041,1732241448876,-545.57177968,0.00059498,120]
[342975042,1732241448888,-500.0,0.00059498,120]
[342975043,1732241448898,-501.70941096,0.00059498,120]
[342975044,1732241448908,-500.0,0.00059498,120]
[342975045,1732241448919,-525.84635953,0.00059498,120]
[342975046,1732241448929,-500.0,0.00059498,120]
[342975047,1732241448939,-500.93641935,0.00059498,120]
[342975048,1732241448950,-502.23185227,0.00059498,120]
[342975049,1732241448961,-500.0,0.00059498,120]
[342975050,1732241448971,-500.0,0.00059498,120]
[342975051,1732241448982,-500.0,0.00059498,120]
[342975052,1732241448992,-500.0,0.00059498,120]
[342975053,1732241449002,-500.0,0.00059498,120]
[342975054,1732241449011,-500.0,0.00059498,120]
[342975055,1732241449022,-500.0,0.00059498,120]
[342975056,1732241449032,-500.0,0.00059498,120]
[342975057,1732241449041,-500.0,0.00059498,120]
[342975058,1732241449051,-2000.0,0.00059498,30]
[342975059,1732241449062,-500.0,0.00059498,120]
[342975060,1732241449072,-500.0,0.00059498,120]
[342975061,1732241449082,-500.0,0.00059498,120]
[342975062,1732241449092,-500.0,0.00059498,120]
[342975063,1732241449102,-500.0,0.00059498,120]
[342975064,1732241449112,-500.0,0.00059498,120]
[342975065,1732241449121,-501.58800205,0.00059498,120]
[342975066,1732241449131,-501.53284687,0.00059498,120]
[342975067,1732241449140,-500.0,0.00059498,120]
[342975068,1732241449150,-502.66512614,0.00059498,120]
[342975069,1732241449159,-500.0,0.00059498,120]
[342975070,1732241449168,-501.37574795,0.00059498,120]
[342975071,1732241449178,-500.0,0.00059498,120]
[342975072,1732241449187,-500.0,0.00059498,120]
[342975073,1732241449197,-500.0,0.00059498,120]
[342975074,1732241449207,-501.28882635,0.00059498,120]
[342975075,1732241449217,-500.0,0.00059498,120]
[342975076,1732241449227,-571.87518706,0.00059498,120]
[342975077,1732241449237,-501.25907446,0.00059498,120]
[342975078,1732241449246,-539.94166958,0.00059498,120]
[342975079,1732241449255,-500.0,0.00059498,120]
[342975080,1732241449265,-500.0,0.00059498,120]
[342975081,1732241449277,-502.94532263,0.00059498,120]
[342975082,1732241449290,-500.0,0.00059498,120]
[342975083,1732241449299,-500.0,0.00059498,120]
[342975084,1732241449309,-501.38234855,0.00059498,120]
[342975085,1732241449320,-500.0,0.00059498,120]
[342975086,1732241449330,-500.0,0.00059498,120]
[342975087,1732241449340,-500.0,0.00059498,120]
[342975088,1732241449349,-500.0,0.00059498,120]
[342975089,1732241449359,-500.0,0.00059498,120]
[342975090,1732241449369,-502.38295002,0.00059498,120]
[342975091,1732241449379,-500.0,0.00059498,120]
[342975092,1732241449389,-500.0,0.00059498,120]
[342975093,1732241449399,-500.0,0.00059498,120]
[342975094,1732241449409,-500.0,0.00059498,120]
[342975095,1732241449418,-500.0,0.00059498,120]
[342975096,1732241449428,-500.0,0.00059498,120]
[342975097,1732241449438,-500.0,0.00059498,120]
[342975098,1732241449447,-500.0,0.00059498,120]
[342975099,1732241449456,-500.0,0.00059498,120]
[342975100,1732241449465,-500.0,0.00059498,120]
[342975101,1732241449474,-500.0,0.00059498,120]
[342975102,1732241449484,-500.0,0.00059498,120]
[342975103,1732241449494,-501.28328149,0.00059498,120]
[342975104,1732241449504,-500.0,0.00059498,120]
[342975105,1732241449513,-500.74412022,0.00059498,120]
[342975106,1732241449525,-500.0,0.00059498,120]
[342975107,1732241449535,-500.0,0.00059498,120]
[342975108,1732241449545,-500.0,0.00059498,120]
[342975109,1732241449554,-500.0,0.00059498,120]
[342975110,1732241449563,-500.0,0.00059498,120]
[342975111,1732241449573,-500.0,0.00059498,120]
[342975112,1732241449583,-501.43926682,0.00059498,120]
[342975113,1732241449592,-501.52297953,0.00059498,30]
[342975114,1732241449601,-500.0,0.00059498,120]
[342975115,1732241449610,-501.86887696,0.00059498,120]
[342975116,1732241449619,-500.4272868,0.00059498,120]
[342975117,1732241449628,-500.0,0.00059498,120]
[342975118,1732241449637,-500.0,0.00059498,120]
[342975119,1732241449646,-501.61493729,0.00059498,120]
[342975120,1732241449654,-500.0,0.00059498,120]
[342975121,1732241449662,-500.0,0.00059498,120]
[342975122,1732241449671,-500.0,0.00059498,120]
[342975123,1732241449680,-502.24480222,0.00059498,120]
[342975124,1732241449689,-500.0,0.00059498,120]
[342975125,1732241449698,-500.0,0.00059498,120]
[342975126,1732241449707,-500.42537966,0.00059498,120]
[342975127,1732241449716,-500.0,0.00059498,120]
[342975128,1732241449725,-500.0,0.00059498,120]
[342975129,1732241449734,-500.77897049,0.00059498,120]
[342975130,1732241449743,-500.0,0.00059498,120]
[342975131,1732241449752,-500.0,0.00059498,120]
[342975132,1732241449761,-500.0,0.00059498,120]
[342975133,1732241449771,-500.0,0.00059498,120]
[342975134,1732241449780,-500.0,0.00059498,120]
[342975135,1732241449789,-500.0,0.00059498,120]
[342975136,1732241449799,-501.81799323,0.00059498,120]
[342975137,1732241449808,-500.0,0.00059498,120]
[342975138,1732241449818,-501.24837892,0.00059498,120]
[342975139,1732241449828,-500.0,0.00059498,120]
[342975140,1732241449837,-500.73358678,0.00059498,120]
[342975141,1732241449847,-500.0,0.00059498,120]
[342975142,1732241449856,-502.62450449,0.00059498,120]
[342975143,1732241449962,-500.0,0.00059498,120]
[342975144,1732241449972,-500.0,0.00059498,120]
[342975145,1732241449982,-501.0722523,0.00059498,120]
[342975146,1732241449991,-502.24856653,0.00059498,120]
[342975147,1732241450000,-500.0,0.00059498,120]
[342975148,1732241450011,-501.67997191,0.00059498,120]
[342975149,1732241450021,-500.0,0.00059498,120]
[342975150,1732241450031,-500.48727087,0.00059498,120]
[342975151,1732241450043,-502.54930809,0.00059498,120]
[342975152,1732241450053,-501.47602378,0.00059498,120]
[342975153,1732241450063,-500.35401237,0.00059498,120]
[342975154,1732241450073,-503.02587177,0.00059498,120]
[342975155,1732241450083,-500.0,0.00059498,120]
[342975156,1732241450092,-500.0,0.00059498,120]
[342975157,1732241450101,-500.0,0.00059498,120]
[342975158,1732241450111,-500.0,0.00059498,120]
[342975159,1732241450120,-500.0,0.00059498,120]
[342975160,1732241450130,-500.0,0.00059498,120]
[342975161,1732241450139,-500.0,0.00059498,120]
[342975162,1732241450149,-500.4659284,0.00059498,120]
[342975163,1732241450158,-501.05679605,0.00059498,120]
[342975164,1732241450169,-503.94325368,0.00059498,120]
[342975165,1732241450178,-500.0,0.00059498,120]
[342975166,1732241450187,-500.0,0.00059498,120]
[342975167,1732241450196,-466.16841378,0.00059498,120]
[342975168,1732241450205,-502.56459039,0.00059498,120]
[342975169,1732241450215,-500.0,0.00059498,120]
[342975170,1732241450225,-500.0,0.00059498,120]
[342975171,1732241450235,-500.0,0.00059498,120]
[342975172,1732241450244,-502.22967639,0.00059498,120]
[342975173,1732241450253,-501.37247117,0.00059498,120]
[342975174,1732241450263,-327.20880656,0.00059498,120]
[342975175,1732241450274,-501.17312576,0.00059498,120]
[342975176,1732241450283,-500.0,0.00059498,120]
[342975177,1732241450292,-500.0,0.00059498,120]
[342975178,1732241450302,-501.66189642,0.00059498,120]
[342975179,1732241450311,-502.80147471,0.00059498,120]
[342975180,1732241450321,-500.0,0.00059498,120]
[342975181,1732241450330,-500.0,0.00059498,2]
[342975182,1732241450340,-502.82265837,0.00059498,120]
[342975183,1732241450349,-500.0,0.00059498,120]
[342975184,1732241450358,-500.0,0.00059498,120]
[342975185,1732241450367,-500.0,0.00059498,120]
[342975186,1732241450376,-500.0,0.00059498,120]
[342975187,1732241450386,-500.0,0.00059498,120]
[342975188,1732241450395,-500.0,0.00059498,120]
[342975189,1732241450404,-500.0,0.00059498,120]
[342975190,1732241450413,-500.0,0.00059498,120]
[342975191,1732241450423,-500.0,0.00059498,120]
[342975192,1732241450432,-320.76903945,0.00059498,120]
[342975193,1732241450442,-476.32807946,0.00059498,120]
[342975194,1732241450451,-501.0942527,0.00059498,120]
[342975195,1732241450460,-500.0,0.00059498,120]
[342975196,1732241450469,-500.35402305,0.00059498,120]
[342975197,1732241450479,-500.0,0.00059498,120]
[342975198,1732241450488,-500.92782931,0.00059498,120]
[342975199,1732241450497,-500.0,0.00059498,120]
[342975200,1732241450506,-500.0,0.00059498,120]
[342975201,1732241450515,-501.18823099,0.00059498,120]
[342975202,1732241450526,-500.0,0.00059498,120]
[342975203,1732241450535,-500.0,0.00059498,120]
[342975204,1732241450545,-501.66186098,0.00059498,120]
[342975205,1732241450554,-500.0,0.00059498,120]
[342975206,1732241450564,-506.6441441,0.00059498,120]
[342975207,1732241450573,-499.97102445,0.00059498,120]
[342975208,1732241450583,-500.0,0.00059498,120]
[342975209,1732241450592,-500.0,0.00059498,120]
[342975210,1732241450602,-500.42737017,0.00059498,120]
[342975211,1732241450612,-500.0,0.00059498,120]
[342975212,1732241450622,-501.56800779,0.00059498,120]
[342975213,1732241450631,-500.0,0.00059498,120]
[342975214,1732241450641,-500.84618321,0.00059498,120]
[342975215,1732241450651,-500.0,0.00059498,120]
[342975216,1732241450660,-500.0,0.00059498,120]
[342975217,1732241450669,-502.10684856,0.00059498,120]
[342975218,1732241450679,-500.0,0.00059498,120]
[342975219,1732241450689,-500.0,0.00059498,120]
[342975220,1732241450698,-500.0,0.00059498,120]
[342975221,1732241450710,-500.87305661,0.00059498,120]
[342975222,1732241450720,-500.0,0.00059498,120]
[342975223,1732241450729,-1500.0,0.00059498,120]
[342975224,1732241450739,-500.62472791,0.00059498,120]
[342975225,1732241450748,-500.0,0.00059498,120]
[342975226,1732241450758,-500.48777752,0.00059498,120]
[342975227,1732241450767,-502.04521718,0.00059498,120]
[342975228,1732241450777,-501.06000301,0.00059498,120]
[342975229,1732241450787,-500.0,0.00059498,120]
[342975230,1732241450796,-501.28084253,0.00059498,120]
[342975231,1732241450806,-500.0,0.00059498,120]
[342975232,1732241450815,-501.20815972,0.00059498,120]
[342975233,1732241450824,-500.0,0.00059498,120]
[342975234,1732241450834,-633.44784062,0.00059498,120]
[342975235,1732241450843,-500.0,0.00059498,120]
[342975236,1732241450852,-500.0,0.00059498,120]
[342975237,1732241450862,-500.0,0.00059498,120]
[342975238,1732241450873,-500.0,0.00059498,120]
[342975239,1732241450882,-578.29291708,0.00059498,120]
[342975240,1732241450891,-500.0,0.00059498,120]
[342975241,1732241450900,-500.0,0.00059498,120]
[342975242,1732241450910,-500.0,0.00059498,120]
[342975243,1732241450920,-500.0,0.00059498,120]
[342975244,1732241450930,-500.0,0.00059498,120]
[342975245,1732241450940,-500.0,0.00059498,120]
[342975246,1732241450949,-500.0,0.00059498,120]
[342975247,1732241450959,-501.38793748,0.00059498,120]
[342975248,1732241450969,-500.0,0.00059498,120]
[342975249,1732241450979,-500.0,0.00059498,120]
[342975250,1732241450989,-500.0,0.00059498,120]
[342975251,1732241450998,-500.0,0.00059498,120]
[342975252,1732241451008,-503.7408131,0.00059498,120]
[342975253,1732241451017,-500.0,0.00059498,120]
[342975254,1732241451028,-500.0,0.00059498,120]
[342975255,1732241451037,-500.0,0.00059498,120]
[342975256,1732241451047,-500.0,0.00059498,120]
[342975257,1732241451056,-500.0,0.00059498,120]
[342975258,1732241451066,-500.0,0.00059498,120]
[342975259,1732241451075,-506.06194322,0.00059498,120]
[342975260,1732241451084,-500.0,0.00059498,120]
[342975261,1732241451094,-501.69920875,0.00059498,120]
[342975262,1732241451103,-500.0,0.00059498,120]
[342975263,1732241451112,-500.0,0.00059498,120]
[342975264,1732241451122,-502.80229099,0.00059498,120]
[342975265,1732241451131,-500.0,0.00059498,120]
[342975266,1732241451141,-509.84,0.00059498,120]
[342975267,1732241451150,-500.0,0.00059498,120]
[342975268,1732241451160,-502.70647458,0.00059498,120]
[342975269,1732241451170,-500.0,0.00059498,120]
[342975270,1732241451179,-507.18910053,0.00059498,120]
[342975271,1732241451188,-500.0,0.00059498,120]
[342975272,1732241451198,-506.65727824,0.00059498,120]
[342975273,1732241451207,-500.0,0.00059498,120]
[342975274,1732241451216,-500.0,0.00059498,120]
[342975275,1732241451225,-500.0,0.00059498,120]
[342975276,1732241451235,-500.0,0.00059498,120]
[342975277,1732241451245,-500.0,0.00059498,120]
[342975278,1732241451255,-505.51653192,0.00059498,120]
[342975279,1732241451264,-500.0,0.00059498,120]
[342975280,1732241451275,-500.0,0.00059498,120]
[342975281,1732241451285,-500.0,0.00059498,120]
[342975282,1732241451294,-235.76229817,0.00059498,120]
[342975283,1732241451303,-504.04960197,0.00059498,120]
[342975284,1732241451313,-500.0,0.00059498,120]
[342975285,1732241451323,-505.07223869,0.00059498,120]
[342975286,1732241451333,-500.0,0.00059498,120]
[342975287,1732241451343,-500.0,0.00059498,120]
[342975288,1732241451351,-507.67082686,0.00059498,120]
[342975289,1732241451361,-500.0,0.00059498,120]
[342975290,1732241451370,-500.0,0.00059498,120]
[342975291,1732241451380,-646.42018397,0.00059498,120]
[342975292,1732241451389,-502.18735368,0.00059498,120]
[342975293,1732241451399,-500.0,0.00059498,120]
[342975294,1732241451408,-500.96066701,0.00059498,120]
[342975295,1732241451418,-500.0,0.00059498,120]
[342975296,1732241451428,-500.0,0.00059498,120]
[342975297,1732241451437,-500.0,0.00059498,120]
[342975298,1732241451447,-504.75162039,0.00059498,120]
[342975299,1732241451456,-500.0,0.00059498,120]
[342975300,1732241451465,-500.0,0.00059498,120]
[342975301,1732241451476,-502.42436934,0.00059498,120]
[342975302,1732241451485,-500.0,0.00059498,120]
[342975303,1732241451494,-500.0,0.00059498,120]
[342975304,1732241451504,-500.0,0.00059498,120]
[342975305,1732241451513,-502.00998,0.00059498,120]
[342975306,1732241451525,-500.0,0.00059498,120]
[342975307,1732241451538,-633.80313334,0.00059498,120]
[342975308,1732241451547,-500.0,0.00059498,120]
[342975309,1732241451556,-503.95126618,0.00059498,120]
[342975310,1732241451565,-608.49,0.00059498,120]
[342975311,1732241451575,-500.0,0.00059498,120]
[342975312,1732241451584,-508.63161035,0.00059498,120]
[342975313,1732241451594,-530.50683949,0.00059498,120]
[342975314,1732241451603,-510.24060452,0.00059498,120]
[342975315,1732241451612,-500.0,0.00059498,120]
[342975316,1732241451622,-500.0,0.00059498,120]
[342975317,1732241451631,-500.0,0.00059498,120]
[342975318,1732241451640,-500.0,0.00059498,120]
[342975319,1732241451649,-506.19670659,0.00059498,120]
[342975320,1732241451658,-500.0,0.00059498,120]
[342975321,1732241451667,-500.0,0.00059498,120]
[342975322,1732241451677,-500.0,0.00059498,120]
[342975323,1732241451686,-510.03713325,0.00059498,120]
[342975324,1732241451695,-500.0,0.00059498,120]
[342975325,1732241451705,-500.0,0.00059498,120]
[342975326,1732241451714,-500.0,0.00059498,120]
[342975327,1732241451723,-500.0,0.00059498,120]
[342975328,1732241451733,-500.87597356,0.00059498,120]
[342975329,1732241451742,-505.72334773,0.00059498,120]
[342975330,1732241451752,-500.0,0.00059498,120]
[342975331,1732241451762,-500.0,0.00059498,120]
[342975332,1732241451779,-512.58472514,0.00059498,120]
[342975333,1732241451789,-520.68825092,0.00059498,120]
[342975334,1732241451799,-500.0,0.00059498,120]
[342975335,1732241451808,-502.89411852,0.00059498,120]
[342975336,1732241451818,-502.85438161,0.00059498,120]
[342975337,1732241451828,-502.68392911,0.00059498,120]
[342975338,1732241451839,-500.0,0.00059498,120]
[342975339,1732241451848,-500.0,0.00059498,120]
[342975340,1732241451858,-500.0,0.00059498,120]
[342975341,1732241451868,-500.0,0.00059498,120]
[342975342,1732241451877,-500.9053197,0.00059498,120]
[342975343,1732241451890,-502.54031059,0.00059498,120]
[342975344,1732241451899,-503.1152301,0.00059498,120]
[342975345,1732241451909,-500.0,0.00059498,120]
[342975346,1732241451921,-500.0,0.00059498,120]
[342975347,1732241451931,-503.32875642,0.00059498,120]
[342975348,1732241451941,-504.50115758,0.00059498,120]
[342975349,1732241451951,-2825.36,0.00059498,2]
[342975350,1732241451962,-643.26668379,0.00059498,120]
[342975351,1732241451971,-500.0,0.00059498,120]
[342975352,1732241451981,-500.0,0.00059498,120]
[342975353,1732241451990,-500.0,0.00059498,120]
[342975354,1732241451999,-507.845551,0.00059498,120]
[342975355,1732241452009,-638.1224643,0.00059498,120]
[342975356,1732241452018,-500.0,0.00059498,120]
[342975357,1732241452038,-500.0,0.00059498,120]
[342975358,1732241452047,-703.59877774,0.00059498,120]
[342975359,1732241452057,-500.0,0.00059498,120]
[342975360,1732241452066,-567.84660664,0.00059498,120]
[342975361,1732241452076,-500.0,0.00059498,120]
[342975362,1732241452085,-500.0,0.00059498,120]
[342975363,1732241452182,-500.0,0.00059498,120]
[342975364,1732241452192,-500.0,0.00059498,120]
[342975365,1732241452202,-500.0,0.00059498,120]
[342975366,1732241452211,-508.48662375,0.00059498,120]
[342975367,1732241452220,-500.0,0.00059498,120]
[342975368,1732241452229,-500.95446146,0.00059498,120]
[342975369,1732241452238,-500.0,0.00059498,7]
[342975370,1732241452247,-500.0,0.00059498,120]
[342975371,1732241452257,-501.10942878,0.00059498,120]
[342975372,1732241452266,-512.45970099,0.00059498,120]
[342975373,1732241452283,-568.90072044,0.00059498,120]
[342975374,1732241452292,-500.0,0.00059498,120]
[342975375,1732241452302,-500.0,0.00059498,120]
[342975376,1732241452311,-518.50286582,0.00059498,120]
[342975377,1732241452321,-500.0,0.00059498,120]
[342975378,1732241452330,-578.89288651,0.00059498,120]
[342975379,1732241452340,-500.0,0.00059498,120]
[342975380,1732241452348,-500.0,0.00059498,120]
[342975381,1732241452357,-613.43690107,0.00059498,60]
[342975382,1732241452367,-500.0,0.00059498,120]
[342975383,1732241452376,-507.57075162,0.00059498,120]
[342975384,1732241452385,-504.6180291,0.00059498,120]
[342975385,1732241452394,-500.0,0.00059498,120]
[342975386,1732241452404,-550.35607837,0.00059498,120]
[342975387,1732241452414,-506.77189386,0.00059498,120]
[342975388,1732241452423,-503.02508234,0.00059498,120]
[342975389,1732241452432,-507.07013978,0.00059498,120]
[342975390,1732241452442,-500.0,0.00059498,120]
[342975391,1732241452451,-500.0,0.00059498,120]
[342975392,1732241452460,-505.76463489,0.00059498,120]
[342975393,1732241452470,-501.63870265,0.00059498,120]
[342975394,1732241452479,-500.0,0.00059498,120]
[342975395,1732241452489,-500.0,0.00059498,120]
[342975396,1732241452499,-500.0,0.00059498,120]
[342975397,1732241452508,-500.0,0.00059498,120]
[342975398,1732241452518,-500.0,0.00059498,120]
[342975399,1732241452531,-500.0,0.00059498,120]
[342975400,1732241452540,-500.0,0.00059498,120]
[342975401,1732241452551,-501.79976249,0.00059498,120]
[342975402,1732241452562,-1000.0,0.00059498,120]
[342975403,1732241452571,-500.0,0.00059498,120]
[342975404,1732241452580,-551.60942258,0.00059498,120]
[342975405,1732241452589,-501.2391759,0.00059498,120]
[342975406,1732241452599,-500.0,0.00059498,120]
[342975407,1732241452608,-561.5,0.00059498,120]
[342975408,1732241452617,-500.0,0.00059498,120]
[342975409,1732241452627,-502.56578059,0.00059498,120]
[342975410,1732241452636,-506.7564487,0.00059498,120]
[342975411,1732241452646,-500.0,0.00059498,120]
[342975412,1732241452655,-500.0,0.00059498,120]
[342975413,1732241452664,-500.0,0.00059498,120]
[342975414,1732241452675,-458.80918232,0.00059498,120]
[342975415,1732241452684,-500.0,0.00059498,120]
[342975416,1732241452693,-500.0,0.00059498,120]
[342975417,1732241452702,-500.0,0.00059498,120]
[342975418,1732241452711,-500.0,0.00059498,120]
[342975419,1732241452720,-859.38756519,0.00059498,120]
[342975420,1732241452731,-504.8841819,0.00059498,120]
[342975421,1732241452740,-511.43165834,0.00059498,120]
[342975422,1732241452749,-504.59226156,0.00059498,120]
[342975423,1732241452759,-504.43952258,0.00059498,120]
[342975424,1732241452768,-515.50449024,0.00059498,120]
[342975425,1732241452780,-500.0,0.00059498,120]
[342975426,1732241452790,-500.0,0.00059498,120]
[342975427,1732241452799,-504.7038172,0.00059498,120]
[342975428,1732241452809,-507.65244938,0.00059498,120]
[342975429,1732241452818,-573.4487777,0.00059498,120]
[342975430,1732241452828,-500.0,0.00059498,120]
[342975431,1732241452838,-500.0,0.00059498,120]
[342975432,1732241452847,-500.0,0.00059498,120]
[342975433,1732241452857,-500.0,0.00059498,120]
[342975434,1732241452867,-500.0,0.00059498,120]
[342975435,1732241452880,-500.0,0.00059498,14]
[342975436,1732241452890,-543.80364792,0.00059498,120]
[342975437,1732241452900,-501.57311689,0.00059498,120]
[342975438,1732241452909,-500.0,0.00059498,120]
[342975439,1732241452920,-500.0,0.00059498,120]
[342975440,1732241452930,-507.65332536,0.00059498,120]
[342975441,1732241452939,-500.0,0.00059498,120]
[342975442,1732241452949,-500.0,0.00059498,120]
[342975443,1732241452959,-500.0,0.00059498,120]
[342975444,1732241452970,-500.0,0.00059498,120]
[342975445,1732241452979,-506.07073652,0.00059498,120]
[342975446,1732241452989,-500.0,0.00059498,120]
[342975447,1732241452998,-500.0,0.00059498,120]
[342975448,1732241453008,-570.72488598,0.00059498,120]
[342975449,1732241453017,-500.0,0.00059498,120]
[342975450,1732241453029,-500.0,0.00059498,120]
[342975451,1732241453039,-500.0,0.00059498,120]
[342975452,1732241453048,-500.0,0.00059498,120]
[342975453,1732241453058,-502.19879131,0.00059498,120]
[342975454,1732241453068,-500.0,0.00059498,120]
[342975455,1732241453078,-549.0868043,0.00059498,120]
[342975456,1732241453088,-1691.8574,0.00059499,2]
[342975457,1732241453097,-52557.4869,0.00059499,2]
[342975458,1732241453106,-2500.0,0.00059499,120]
[342975459,1732241453115,-808.5675,0.00059499,120]
[342975460,1732241453125,-902.6924,0.00059598,120]